lending/lending_fUSD_20240509
["ID","MTS","AMOUNT","RATE_DAILY","PERIOD"]
[326679056,1715217060200,-303.2866487,0.00027945,5]
[326679057,1715217060210,-500.0,0.00027945,5]
[326679058,1715217060220,-500.0,0.00027945,5]
[326679059,1715217060230,-520.3,0.00027945,5]
[326679060,1715217060240,-500.0,0.00027945,5]
[326679061,1715217060250,-907.36,0.00027945,5]
[326679062,1715217060260,-500.0,0.00027945,5]
[326679063,1715217060278,-500.0,0.00027945,5]
[326679064,1715217060292,-500.0,0.00027945,5]
[326679065,1715217060303,-902.04,0.00027945,5]
[326679066,1715217060314,-500.0,0.00027945,5]
[326679067,1715217060324,-500.0,0.00027945,5]
[326679068,1715217060334,-500.0,0.00027945,5]
[326679069,1715217060344,-500.0,0.00027945,5]
[326679070,1715217060355,-500.0,0.00027945,5]
[326679071,1715217060365,-500.0,0.00027945,5]
[326679072,1715217060375,-500.0,0.00027945,5]
[326679073,1715217060386,-500.0,0.00027945,5]
[326679074,1715217060397,-500.0,0.00027945,5]
[326679075,1715217060409,-500.0,0.00027945,5]
[326679076,1715217060420,-500.0,0.00027945,5]
[326679077,1715217060432,-573.32,0.00027945,5]
[326679078,1715217060445,-500.0,0.00027945,5]
[326679079,1715217060455,-500.0,0.00027945,5]
[326679080,1715217060466,-500.0,0.00027945,5]
[326679081,1715217060479,-500.0,0.00027945,5]
[326679082,1715217060489,-500.0,0.00027945,5]
[326679083,1715217060500,-500.0,0.00027945,5]
[326679084,1715217060510,-500.0,0.00027945,5]
[326679085,1715217060520,-500.0,0.00027945,5]
[326679086,1715217060531,-500.0,0.00027945,5]
[326679087,1715217060542,-1464.38,0.00027945,5]
[326679088,1715217060553,-500.0,0.00027945,5]
[326679089,1715217060564,-500.0,0.00027945,5]
[326679090,1715217060574,-500.0,0.00027945,5]
[326679091,1715217060585,-1158.24,0.00027945,5]
[326679092,1715217060596,-500.0,0.00027945,5]
[326679093,1715217060606,-500.0,0.00027945,5]
[326679094,1715217060618,-500.0,0.00027945,5]
[326679095,1715217060629,-1384.53,0.00027945,5]
[326679096,1715217060639,-500.0,0.00027945,5]
[326679097,1715217060650,-500.0,0.00027945,5]
[326679098,1715217060660,-500.0,0.00027945,5]
[326679099,1715217060670,-500.0,0.00027945,5]
[326679100,1715217060682,-500.0,0.00027945,5]
[326679101,1715217060694,-500.0,0.00027945,5]
[326679102,1715217060704,-500.0,0.00027945,5]
[326679103,1715217060714,-500.0,0.00027945,5]
[326679104,1715217060725,-700.53,0.00027945,5]
[326679105,1715217060735,-863.3,0.00027945,5]
[326679106,1715217060746,-500.0,0.00027945,5]
[326679107,1715217060756,-500.0,0.00027945,5]
[326679108,1715217060766,-500.0,0.00027945,5]
[326679109,1715217060780,-500.0,0.00027945,5]
[326679110,1715217060791,-500.0,0.00027945,5]
[326679111,1715217060801,-1984.81,0.00027945,5]
[326679112,1715217060811,-500.0,0.00027945,5]
[326679113,1715217060822,-500.0,0.00027945,5]
[326679114,1715217060833,-500.0,0.00027945,5]
[326679115,1715217060843,-1956.29,0.00027945,5]
[326679116,1715217060856,-500.0,0.00027945,5]
[326679117,1715217060866,-500.0,0.00027945,5]
[326679118,1715217060878,-1913.82,0.00027945,5]
[326679119,1715217060888,-3582.48,0.00027945,5]
[326679120,1715217060899,-1144.51,0.00027945,5]
[326679121,1715217060912,-500.0,0.00027945,5]
[326679122,1715217060922,-500.0,0.00027945,5]
[326679123,1715217060933,-500.0,0.00027945,5]
[326679124,1715217060945,-804.16,0.00027945,5]
[326679125,1715217060955,-500.0,0.00027945,5]
[326679126,1715217061135,-500.0,0.00027945,5]
[326679127,1715217061146,-500.0,0.00027945,5]
[326679128,1715217061157,-857.49,0.00027945,5]
[326679129,1715217061168,-1485.56,0.00027945,5]
[326679130,1715217061180,-500.0,0.00027945,5]
[326679131,1715217061191,-500.0,0.00027945,5]
[326679132,1715217061202,-500.0,0.00027945,5]
[326679133,1715217061213,-500.0,0.00027945,5]
[326679134,1715217061224,-500.0,0.00027945,5]
[326679135,1715217061235,-720.85,0.00027945,5]
[326679136,1715217061245,-1630.34,0.00027945,5]
[326679137,1715217061257,-500.0,0.00027945,5]
[326679138,1715217061268,-934.0,0.00027945,5]
[326679139,1715217061278,-500.0,0.00027945,5]
[326679140,1715217061289,-528.7,0.00027945,5]
[326679141,1715217061301,-500.0,0.00027945,5]
[326679142,1715217061314,-500.0,0.00027945,5]
[326679143,1715217061325,-684.85,0.00027945,5]
[326679144,1715217061335,-500.0,0.00027945,5]
[326679145,1715217061349,-1024.94,0.00027945,5]
[326679146,1715217061367,-1538.77,0.00027945,5]
[326679147,1715217061385,-953.11,0.00027945,5]
[326679148,1715217061397,-500.0,0.00027945,5]
[326679149,1715217061412,-500.0,0.00027945,5]
[326679150,1715217061428,-500.0,0.00027945,5]
[326679151,1715217061446,-500.0,0.00027945,5]
[326679152,1715217061458,-500.0,0.00027945,5]
[326679153,1715217061480,-500.0,0.00027945,5]
[326679154,1715217061490,-630.02,0.00027945,5]
[326679155,1715217061505,-500.0,0.00027945,5]
[326679156,1715217061541,-784.04,0.00027945,5]
[326679157,1715217061558,-1107.86,0.00027945,5]
[326679158,1715217061568,-500.0,0.00027945,2]
[326679159,1715217061583,-907.7,0.00027945,5]
[326679160,1715217061598,-1670.29,0.00027945,5]
[326679161,1715217061616,-523.8,0.00027945,5]
[326679162,1715217061627,-500.0,0.00027945,5]
[326679163,1715217061641,-500.0,0.00027945,5]
[326679164,1715217061660,-500.0,0.00027945,5]
[326679165,1715217061673,-500.0,0.00027945,5]
[326679166,1715217061690,-500.0,0.00027945,5]
[326679167,1715217061706,-500.0,0.00027945,5]
[326679168,1715217061718,-500.0,0.00027945,5]
[326679169,1715217061730,-500.0,0.00027945,5]
[326679170,1715217061741,-500.0,0.00027945,5]
[326679171,1715217061764,-2949.77,0.00027945,5]
[326679172,1715217061779,-500.0,0.00027945,5]
[326679173,1715217061796,-500.0,0.00027945,5]
[326679174,1715217061807,-2477.37,0.00027945,5]
[326679175,1715217061828,-500.0,0.00027945,5]
[326679176,1715217061839,-500.0,0.00027945,5]
[326679177,1715217061854,-2516.85,0.00027945,5]
[326679178,1715217061880,-10878.55,0.00027945,5]
[326679179,1715217061895,-762.7,0.00027945,5]
[326679180,1715217061923,-2275.69,0.00027945,5]
[326679181,1715217061942,-500.0,0.00027945,5]
[326679182,1715217061953,-1169.7,0.00027945,5]
[326679183,1715217061963,-500.0,0.00027945,5]
[326679184,1715217061986,-10556.37,0.00027945,5]
[326679185,1715217062016,-969.64,0.00027945,5]
[326679186,1715217062027,-500.0,0.00027945,5]
[326679187,1715217062039,-500.0,0.00027945,5]
[326679188,1715217062050,-954.09,0.00027945,5]
[326679189,1715217062068,-500.0,0.00027945,5]
[326679190,1715217062080,-500.0,0.00027945,5]
[326679191,1715217062100,-500.0,0.00027945,5]
[326679192,1715217062111,-500.0,0.00027945,5]
[326679193,1715217062121,-500.0,0.00027945,5]
[326679194,1715217062146,-16637.32,0.00027945,5]
[326679195,1715217062162,-1462.31,0.00027945,5]
[326679196,1715217062173,-500.0,0.00027945,5]
[326679197,1715217062185,-1812.01,0.00027945,5]
[326679198,1715217062199,-500.0,0.00027945,5]
[326679199,1715217062214,-500.0,0.00027945,5]
[326679200,1715217062225,-1021.9,0.00027945,5]
[326679201,1715217062235,-500.0,0.00027945,5]
[326679202,1715217062246,-1423.55,0.00027945,5]
[326679203,1715217062257,-500.0,0.00027945,5]
[326679204,1715217062268,-500.0,0.00027945,5]
[326679205,1715217062280,-500.0,0.00027945,5]
[326679206,1715217062299,-1438.25,0.00027945,5]
[326679207,1715217062315,-2212.01,0.00027945,5]
[326679208,1715217062341,-1000.8,0.00027945,5]
[326679209,1715217062361,-500.0,0.00027945,5]
[326679210,1715217062385,-254.25,0.00027945,5]
[326679211,1715217062395,-500.0,0.00027945,5]
[326679212,1715217062407,-500.0,0.00027945,5]
[326679213,1715217062421,-878.58,0.00027945,5]
[326679214,1715217062435,-500.0,0.00027945,5]
[326679215,1715217062448,-500.0,0.00027945,5]
[326679216,1715217062468,-500.0,0.00027945,5]
[326679217,1715217062485,-500.0,0.00027945,5]
[326679218,1715217062497,-423.79882892,0.00027945,5]
[326679219,1715217062515,-500.0,0.00027945,5]
[326679220,1715217062526,-1091.17,0.00027945,5]
[326679221,1715217062540,-500.0,0.00027945,5]
[326679222,1715217062555,-1004.74,0.00027945,5]
[326679223,1715217062582,-500.0,0.00027945,5]
[326679224,1715217062594,-500.0,0.00027945,5]
[326679225,1715217062624,-231.51,0.00027945,5]
[326679226,1715217062643,-500.0,0.00027945,5]
[326679227,1715217062655,-500.0,0.00027945,5]
[326679228,1715217062668,-500.0,0.00027945,5]
[326679229,1715217062698,-1672.04,0.00027945,5]
[326679230,1715217062709,-500.0,0.00027945,5]
[326679231,1715217062719,-500.0,0.00027945,5]
[326679232,1715217062736,-710.63,0.00027945,5]
[326679233,1715217062748,-500.0,0.00027945,5]
[326679234,1715217062757,-500.0,0.00027945,5]
[326679235,1715217062769,-500.0,0.00027945,5]
[326679236,1715217062782,-500.0,0.00027945,5]
[326679237,1715217062798,-500.0,0.00027945,5]
[326679238,1715217062816,-4543.04,0.00027945,5]
[326679239,1715217062833,-1514.57,0.00027945,5]
[326679240,1715217062858,-4350.99,0.00027945,5]
[326679241,1715217062892,-870.56,0.00027945,5]
[326679242,1715217062902,-500.0,0.00027945,5]
[326679243,1715217062912,-500.0,0.00027945,5]
[326679244,1715217062922,-500.0,0.00027945,5]
[326679245,1715217062946,-500.0,0.00027945,5]
[326679246,1715217062958,-500.0,0.00027945,5]
[326679247,1715217062970,-500.0,0.00027945,5]
[326679248,1715217062980,-676.45,0.00027945,5]
[326679249,1715217062992,-500.0,0.00027945,5]
[326679250,1715217063008,-500.0,0.00027945,5]
[326679251,1715217063021,-500.0,0.00027945,5]
[326679252,1715217063046,-672.2,0.00027945,5]
[326679253,1715217063066,-1015.13,0.00027945,5]
[326679254,1715217063094,-500.0,0.00027945,5]
[326679255,1715217063105,-1059.25,0.00027945,5]
[326679256,1715217063131,-504.67,0.00027945,5]
[326679257,1715217063145,-835.82,0.00027945,5]
[326679258,1715217063156,-500.0,0.00027945,5]
[326679259,1715217063170,-951.35,0.00027945,5]
[326679260,1715217063185,-500.0,0.00027945,5]
[326679261,1715217063201,-500.0,0.00027945,5]
[326679262,1715217063215,-500.0,0.00027945,5]
[326679263,1715217063226,-500.0,0.00027945,5]
[326679264,1715217063238,-500.0,0.00027945,5]
[326679265,1715217063253,-640.58,0.00027945,5]
[326679266,1715217063269,-500.0,0.00027945,5]
[326679267,1715217063280,-500.0,0.00027945,5]
[326679268,1715217063291,-500.0,0.00027945,5]
[326679269,1715217063302,-500.0,0.00027945,5]
[326679270,1715217063316,-500.0,0.00027945,5]
[326679271,1715217063329,-2089.58,0.00027945,5]
[326679272,1715217063352,-500.0,0.00027945,5]
[326679273,1715217063366,-500.0,0.00027945,5]
[326679274,1715217063378,-500.0,0.00027945,5]
[326679275,1715217063388,-500.0,0.00027945,5]
[326679276,1715217063400,-3153.21,0.00027945,5]
[326679277,1715217063411,-500.0,0.00027945,5]
[326679278,1715217063422,-1066.63,0.00027945,5]
[326679279,1715217063433,-874.19,0.00027945,5]
[326679280,1715217063455,-374.00182891,0.00027945,5]
[326679281,1715217063469,-3013.15,0.00027945,5]
[326679282,1715217063480,-500.0,0.00027945,5]
[326679283,1715217063490,-500.0,0.00027945,5]
[326679284,1715217063500,-500.0,0.00027945,5]
[326679285,1715217063524,-500.0,0.00027945,5]
[326679286,1715217063543,-960.86,0.00027945,5]
[326679287,1715217063572,-1058.16,0.00027945,5]
[326679288,1715217063584,-500.0,0.00027945,5]
[326679289,1715217063601,-500.0,0.00027945,5]
[326679290,1715217063611,-500.0,0.00027945,5]
[326679291,1715217063627,-502.46,0.00027945,5]
[326679292,1715217063642,-500.0,0.00027945,5]
[326679293,1715217063664,-445.6544943,0.00027945,5]
[326679294,1715217063675,-951.28,0.00027945,5]
[326679295,1715217063689,-500.0,0.00027945,5]
[326679296,1715217063700,-572.02,0.00027945,5]
[326679297,1715217063712,-500.0,0.00027945,5]
[326679298,1715217063722,-746.43,0.00027945,5]
[326679299,1715217063734,-1308.8,0.00027945,5]
[326679300,1715217063744,-1141.08,0.00027945,5]
[326679301,1715217063755,-500.0,0.00027945,5]
[326679302,1715217063767,-500.0,0.00027945,5]
[326679303,1715217063784,-500.0,0.00027945,5]
[326679304,1715217063794,-6717.88,0.00027945,5]
[326679305,1715217063821,-500.0,0.00027945,5]
[326679306,1715217063836,-500.0,0.00027945,5]
[326679307,1715217063852,-500.0,0.00027945,5]
[326679308,1715217063869,-500.0,0.00027945,5]
[326679309,1715217063882,-853.36,0.00027945,5]
[326679310,1715217063894,-500.0,0.00027945,5]
[326679311,1715217063909,-500.0,0.00027945,5]
[326679312,1715217063934,-500.0,0.00027945,5]
[326679313,1715217063952,-500.0,0.00027945,5]
[326679314,1715217063962,-670.38,0.00027945,5]
[326679315,1715217063979,-500.0,0.00027945,5]
[326679316,1715217063994,-794.95,0.00027945,5]
[326679317,1715217064005,-500.0,0.00027945,2]
[326679318,1715217064015,-296.19763041,0.00027945,5]
[326679319,1715217064028,-500.0,0.00027945,5]
[326679320,1715217064039,-530.06,0.00027945,5]
[326679321,1715217064050,-500.0,0.00027945,5]
[326679322,1715217064077,-500.0,0.00027945,5]
[326679323,1715217064097,-1056.54,0.00027945,5]
[326679324,1715217064111,-740.12,0.00027945,5]
[326679325,1715217064128,-500.0,0.00027945,5]
[326679326,1715217064143,-602.84,0.00027945,5]
[326679327,1715217064155,-500.0,0.00027945,5]
[326679328,1715217064169,-500.0,0.00027945,5]
[326679329,1715217064182,-9852.4,0.00027945,5]
[326679330,1715217064200,-500.0,0.00027945,5]
[326679331,1715217064210,-500.0,0.00027945,5]
[326679332,1715217064228,-794.56,0.00027945,5]
[326679333,1715217064243,-1013.63,0.00027945,5]
[326679334,1715217064261,-500.0,0.00027945,5]
[326679335,1715217064286,-500.0,0.00027945,5]
[326679336,1715217064299,-500.0,0.00027945,5]
[326679337,1715217064313,-500.0,0.00027945,5]
[326679338,1715217064323,-571.33,0.00027945,5]
[326679339,1715217064334,-500.0,0.00027945,5]
[326679340,1715217064364,-1471.39,0.00027945,5]
[326679341,1715217064396,-500.0,0.00027945,5]
[326679342,1715217064407,-500.0,0.00027945,5]
[326679343,1715217064424,-500.0,0.00027945,5]
[326679344,1715217064435,-500.0,0.00027945,5]
[326679345,1715217064447,-940.42,0.00027945,5]
[326679346,1715217064466,-500.0,0.00027945,5]
[326679347,1715217064478,-500.0,0.00027945,5]
[326679348,1715217064489,-1223.54,0.00027945,5]
[326679349,1715217064499,-619.57,0.00027945,5]
[326679350,1715217064516,-500.0,0.00027945,5]
[326679351,1715217064526,-651.06,0.00027945,5]
[326679352,1715217064538,-500.0,0.00027945,5]
[326679353,1715217064555,-485.82,0.00027945,5]
[326679354,1715217064567,-1821.63,0.00027945,5]
[326679355,1715217064577,-860.42,0.00027945,5]
[326679356,1715217064590,-1430.73,0.00027945,5]
[326679357,1715217064600,-676.9,0.00027945,5]
[326679358,1715217064611,-1926.26,0.00027945,5]
[326679359,1715217064630,-306.64,0.00027945,5]
[326679360,1715217064640,-1353.05,0.00027945,5]
[326679361,1715217064650,-1067.81,0.00027945,5]
[326679362,1715217064668,-950.96,0.00027945,5]
[326679363,1715217064696,-608.42,0.00027945,5]
[326679364,1715217064729,-500.0,0.00027945,5]
[326679365,1715217064746,-500.0,0.00027945,5]
[326679366,1715217064767,-1872.91,0.00027945,5]
[326679367,1715217064784,-588.97,0.00027945,5]
[326679368,1715217064795,-500.0,0.00027945,5]
[326679369,1715217064808,-1589.67,0.00027945,5]
[326679370,1715217064828,-718.73,0.00027945,5]
[326679371,1715217064840,-500.0,0.00027945,5]
[326679372,1715217064854,-1446.99,0.00027945,5]
[326679373,1715217064869,-8209.94,0.00027945,5]
[326679374,1715217064879,-500.0,0.00027945,5]
[326679375,1715217064891,-975.54,0.00027945,5]
[326679376,1715217064908,-3215.27488328,0.00028026,2]
[326679377,1715217064921,-75164.68222134,0.00028086,2]
[326679378,1715217064939,-150.0,0.00028118,2]
[326679379,1715217064950,-260.0,0.00028139,2]
[326679380,1715217064963,-157.050909,0.00028148,20]
[326679381,1715217064979,-1000.0,0.000282,6]
[326679382,1715217065004,-1000.0,0.000282,7]
[326679383,1715217065019,-150.0,0.00028247,4]
[326679384,1715217065037,-151.0,0.00028247,4]
[326679385,1715217065048,-152.38680897,0.00028261,2]
[326679386,1715217065059,-154.93616853,0.00028283,2]
[326679387,1715217065073,-151.05894296,0.0002832,2]
[326679388,1715217065083,-186.15704986,0.00028393,2]
[326679389,1715217065099,-224.87688922,0.00028393,2]
[326679390,1715217065110,-9764.06058134,0.00028409,2]
[326679391,1715217065126,-157.050909,0.00028448,20]
[326679392,1715217065136,-9669.11,0.00028476,2]
[326679393,1715217065146,-4964.89,0.00028492,2]
[326679394,1715217065159,-4964.89,0.00028492,2]
[326679395,1715217065169,-4964.89,0.00028492,2]
[326679396,1715217065185,-504.19193382,0.00028493,5]
[326679397,1715217065196,-500.0,0.00028493,5]
[326679398,1715217065212,-500.0,0.00028493,5]
[326679399,1715217065225,-500.0,0.00028493,5]
[326679400,1715217065239,-500.0,0.00028493,5]
[326679401,1715217065255,-500.0,0.00028493,5]
[326679402,1715217065268,-500.0,0.00028493,5]
[326679403,1715217065289,-500.0,0.00028493,5]
[326679404,1715217065306,-500.0,0.00028493,5]
[326679405,1715217065316,-524.63,0.00028493,5]
[326679406,1715217065326,-500.0,0.00028493,5]
[326679407,1715217065337,-500.0,0.00028493,5]
[326679408,1715217065348,-192.28,0.00028493,5]
[326679409,1715217065359,-247.61524096,0.00028493,5]
[326679410,1715217065373,-500.0,0.00028493,5]
[326679411,1715217065383,-500.0,0.00028493,5]
[326679412,1715217065393,-500.0,0.00028493,5]
[326679413,1715217065403,-500.0,0.00028493,5]
[326679414,1715217065413,-500.0,0.00028493,5]
[326679415,1715217065426,-500.0,0.00028493,5]
[326679416,1715217065439,-500.0,0.00028493,5]
[326679417,1715217065450,-500.0,0.00028493,5]
[326679418,1715217065461,-500.0,0.00028493,5]
[326679419,1715217065475,-500.0,0.00028493,5]
[326679420,1715217065493,-500.0,0.00028493,5]
[326679421,1715217065507,-500.0,0.00028493,5]
[326679422,1715217065518,-500.0,0.00028493,5]
[326679423,1715217065542,-500.0,0.00028493,5]
[326679424,1715217065554,-500.0,0.00028493,5]
[326679425,1715217065568,-500.0,0.00028493,5]
[326679426,1715217065584,-500.0,0.00028493,5]
[326679427,1715217065595,-500.0,0.00028493,5]
[326679428,1715217065606,-500.0,0.00028493,5]
[326679429,1715217065616,-500.0,0.00028493,5]
[326679430,1715217065628,-500.0,0.00028493,5]
[326679431,1715217065638,-500.0,0.00028493,5]
[326679432,1715217065649,-500.0,0.00028493,5]
[326679433,1715217065660,-500.0,0.00028493,5]
[326679434,1715217065670,-500.0,0.00028493,5]
[326679435,1715217065680,-500.0,0.00028493,5]
[326679436,1715217065690,-500.0,0.00028493,5]
[326679437,1715217065700,-500.0,0.00028493,5]
[326679438,1715217065711,-500.0,0.00028493,5]
[326679439,1715217065721,-500.0,0.00028493,5]
[326679440,1715217065731,-500.0,0.00028493,5]
[326679441,1715217065747,-558.09,0.00028493,5]
[326679442,1715217065760,-763.22,0.00028493,5]
[326679443,1715217065893,-500.0,0.00028493,5]
[326679444,1715217065919,-500.0,0.00028493,5]
[326679445,1715217065931,-500.0,0.00028493,5]
[326679446,1715217065942,-500.0,0.00028493,5]
[326679447,1715217065952,-185.34,0.00028493,5]
[326679448,1715217065963,-500.0,0.00028493,5]
[326679449,1715217065974,-500.0,0.00028493,5]
[326679450,1715217065984,-799.66,0.00028493,5]
[326679451,1715217065994,-274.2,0.00028493,5]
[326679452,1715217066015,-172.54,0.00028493,5]
[326679453,1715217066026,-500.0,0.00028493,5]
[326679454,1715217066038,-500.0,0.00028493,5]
[326679455,1715217066049,-593.17,0.00028493,5]
[326679456,1715217066060,-500.0,0.00028493,5]
[326679457,1715217066076,-500.0,0.00028493,5]
[326679458,1715217066091,-500.0,0.00028493,5]
[326679459,1715217066113,-500.0,0.00028493,5]
[326679460,1715217066142,-500.0,0.00028493,5]
[326679461,1715217066156,-668.1,0.00028493,5]
[326679462,1715217066167,-500.0,0.00028493,5]
[326679463,1715217066193,-500.0,0.00028493,5]
[326679464,1715217066207,-500.0,0.00028493,5]
[326679465,1715217066220,-500.0,0.00028493,5]
[326679466,1715217066233,-500.0,0.00028493,5]
[326679467,1715217066244,-717.74,0.00028493,5]
[326679468,1715217066271,-500.0,0.00028493,5]
[326679469,1715217066281,-500.0,0.00028493,5]
[326679470,1715217066296,-567.91,0.00028493,5]
[326679471,1715217066333,-500.0,0.00028493,5]
[326679472,1715217066347,-500.0,0.00028493,5]
[326679473,1715217066364,-744.77,0.00028493,5]
[326679474,1715217066384,-215.86,0.00028493,5]
[326679475,1715217066406,-747.5,0.00028493,5]
[326679476,1715217066417,-500.0,0.00028493,5]
[326679477,1715217066427,-500.0,0.00028493,5]
[326679478,1715217066454,-500.0,0.00028493,5]
[326679479,1715217066475,-500.0,0.00028493,5]
[326679480,1715217066485,-500.0,0.00028493,5]
[326679481,1715217066515,-500.0,0.00028493,5]
[326679482,1715217066526,-600.23,0.00028493,5]
[326679483,1715217066537,-500.0,0.00028493,5]
[326679484,1715217066553,-500.0,0.00028493,5]
[326679485,1715217066563,-500.0,0.00028493,5]
[326679486,1715217066577,-238.4,0.00028493,5]
[326679487,1715217066600,-500.0,0.00028493,5]
[326679488,1715217066614,-500.0,0.00028493,5]
[326679489,1715217066642,-593.49296907,0.00028493,5]
[326679490,1715217066658,-500.0,0.00028493,5]
[326679491,1715217066671,-500.0,0.00028493,5]
[326679492,1715217066682,-500.0,0.00028493,5]
[326679493,1715217066694,-500.0,0.00028493,5]
[326679494,1715217066708,-500.0,0.00028493,5]
[326679495,1715217066721,-500.0,0.00028493,5]
[326679496,1715217066734,-500.0,0.00028493,5]
[326679497,1715217066744,-500.0,0.00028493,5]
[326679498,1715217066755,-500.0,0.00028493,5]
[326679499,1715217066765,-500.0,0.00028493,5]
[326679500,1715217066779,-307.74,0.00028493,5]
[326679501,1715217066791,-500.0,0.00028493,5]
[326679502,1715217066802,-214.65,0.00028493,5]
[326679503,1715217066815,-500.0,0.00028493,5]
[326679504,1715217066828,-500.0,0.00028493,5]
[326679505,1715217066841,-500.09,0.00028493,5]
[326679506,1715217066854,-521.41,0.00028493,5]
[326679507,1715217066865,-500.0,0.00028493,5]
[326679508,1715217066876,-1223.4,0.00028493,5]
[326679509,1715217066890,-923.05,0.00028493,5]
[326679510,1715217066926,-500.0,0.00028493,5]
[326679511,1715217066937,-500.0,0.00028493,5]
[326679512,1715217066949,-500.0,0.00028493,5]
[326679513,1715217066963,-500.0,0.00028493,5]
[326679514,1715217066976,-579.1,0.00028493,5]
[326679515,1715217067004,-500.0,0.00028493,5]
[326679516,1715217067021,-500.0,0.00028493,5]
[326679517,1715217067043,-500.0,0.00028493,5]
[326679518,1715217067060,-500.0,0.00028493,5]
[326679519,1715217067071,-500.0,0.00028493,5]
[326679520,1715217067087,-500.0,0.00028493,5]
[326679521,1715217067103,-500.0,0.00028493,5]
[326679522,1715217067121,-408.62392139,0.00028493,5]
[326679523,1715217067132,-500.0,0.00028493,5]
[326679524,1715217067153,-500.0,0.00028493,5]
[326679525,1715217067171,-500.0,0.00028493,5]
[326679526,1715217067186,-500.0,0.00028493,5]
[326679527,1715217067200,-500.0,0.00028493,5]
[326679528,1715217067233,-500.0,0.00028493,5]
[326679529,1715217067244,-500.0,0.00028493,5]
[326679530,1715217067255,-500.0,0.00028493,5]
[326679531,1715217067271,-500.0,0.00028493,5]
[326679532,1715217067282,-500.0,0.00028493,5]
[326679533,1715217067294,-500.0,0.00028493,5]
[326679534,1715217067313,-1255.29,0.00028493,5]
[326679535,1715217067328,-500.0,0.00028493,5]
[326679536,1715217067344,-500.0,0.00028493,5]
[326679537,1715217067362,-1447.73,0.00028493,5]
[326679538,1715217067377,-500.0,0.00028493,5]
[326679539,1715217067396,-539.45,0.00028493,5]
[326679540,1715217067411,-500.0,0.00028493,5]
[326679541,1715217067422,-974.58,0.00028493,5]
[326679542,1715217067436,-500.0,0.00028493,5]
[326679543,1715217067454,-500.0,0.00028493,5]
[326679544,1715217067470,-500.0,0.00028493,5]
[326679545,1715217067495,-949.79,0.00028493,5]
[326679546,1715217067512,-500.0,0.00028493,5]
[326679547,1715217067529,-560.84,0.00028493,5]
[326679548,1715217067542,-500.0,0.00028493,5]
[326679549,1715217067555,-500.0,0.00028493,5]
[326679550,1715217067574,-500.0,0.00028493,5]
[326679551,1715217067600,-500.0,0.00028493,5]
[326679552,1715217067611,-733.87,0.00028493,5]
[326679553,1715217067633,-500.0,0.00028493,5]
[326679554,1715217067644,-500.0,0.00028493,5]
[326679555,1715217067660,-500.0,0.00028493,5]